fUSD/lending_fUSD_20240616
["ID","MTS","AMOUNT","RATE_DAILY","PERIOD"]
[329690821,1718581860439,-150.0,0.00026685,2]
[329690822,1718581860450,-164.41,0.00026685,2]
[329690823,1718581860462,-150.0,0.00026685,2]
[329690824,1718581860473,-150.0,0.00026685,2]
[329690825,1718581860485,-353.88,0.00026685,2]
[329690826,1718581860498,-164.41,0.00026685,2]
[329690827,1718581860517,-150.0,0.00026688,2]
[329690828,1718581860537,-152.0,0.00026697,3]
[329690829,1718581860571,-4951.05,0.000267,2]
[329690830,1718581860595,-150.0,0.000267,2]
[329690831,1718581860657,-150.0,0.00026724,2]
[329690832,1718581860674,-150.0,0.00026741,2]
[329690833,1718581860690,-150.0,0.00026754,2]
[329690834,1718581860708,-150.0,0.00026758,2]
[329690835,1718581860727,-151.0,0.00026759,5]
[329690836,1718581860760,-150.0,0.00026772,2]
[329690837,1718581860786,-264.1878532,0.00026779,2]
[329690838,1718581860803,-150.0,0.00026815,2]
[329690839,1718581860820,-150.0,0.00026825,2]
[329690840,1718581860838,-150.0,0.00026863,2]
[329690841,1718581860879,-1500.0,0.00026868,2]
[329690842,1718581860910,-2867.99063397,0.00026877,14]
[329690843,1718581860925,-150.0,0.00026877,2]
[329690844,1718581860968,-394992.63058235,0.0002688,2]
[329690845,1718581861025,-156851.15590062,0.0002688,2]
[329690846,1718581861044,-151.0,0.0002688,7]
[329690847,1718581861063,-263.100876,0.0002688,7]
[329690848,1718581861076,-151.0,0.0002688,7]
[329690849,1718581861096,-151.0,0.0002688,7]
[329690850,1718581861120,-151.0,0.0002688,7]
[329690851,1718581861153,-428.047649,0.0002688,7]
[329690852,1718581861165,-428.047649,0.0002688,7]
[329690853,1718581861180,-151.0,0.0002688,7]
[329690854,1718581861207,-151.0,0.0002688,7]
[329690855,1718581861230,-151.0,0.0002688,7]
[329690856,1718581861245,-151.0,0.0002688,7]
[329690857,1718581861257,-151.0,0.0002688,7]
[329690858,1718581861272,-151.0,0.0002688,7]
[329690859,1718581861292,-151.0,0.0002688,7]
[329690860,1718581861345,-151.0,0.0002688,7]
[329690861,1718581861358,-151.0,0.0002688,7]
[329690862,1718581861387,-151.0,0.0002688,7]
[329690863,1718581861405,-151.0,0.0002688,7]
[329690864,1718581861423,-187.507954,0.0002688,7]
[329690865,1718581861446,-187.507954,0.0002688,7]
[329690866,1718581861464,-151.0,0.0002688,7]
[329690867,1718581861485,-151.0,0.0002688,7]
[329690868,1718581861502,-160.717722,0.0002688,7]
[329690869,1718581861521,-160.717722,0.0002688,7]
[329690870,1718581861538,-151.0,0.0002688,7]
[329690871,1718581861571,-387.697063,0.0002688,7]
[329690872,1718581861585,-387.697063,0.0002688,7]
[329690873,1718581861627,-151.0,0.0002688,7]
[329690874,1718581861697,-155.417556,0.0002688,7]
[329690875,1718581861724,-155.417556,0.0002688,7]
[329690876,1718581861771,-170.640598,0.0002688,7]
[329690877,1718581861824,-170.640598,0.0002688,7]
[329690878,1718581861844,-151.0,0.0002688,7]
[329690879,1718581861875,-151.0,0.0002688,7]
[329690880,1718581861897,-396.994115,0.0002688,7]
[329690881,1718581861929,-396.994115,0.0002688,7]
[329690882,1718581861970,-151.0,0.0002688,7]
[329690883,1718581861992,-151.0,0.0002688,7]
[329690884,1718581862014,-151.0,0.0002688,7]
[329690885,1718581862036,-151.0,0.0002688,7]
[329690886,1718581862056,-151.0,0.0002688,7]
[329690887,1718581862076,-549.676913,0.0002688,7]
[329690888,1718581862092,-549.676913,0.0002688,7]
[329690889,1718581862109,-151.0,0.0002688,7]
[329690890,1718581862177,-151.0,0.0002688,7]
[329690891,1718581862223,-151.0,0.0002688,7]
[329690892,1718581862250,-151.0,0.0002688,7]
[329690893,1718581862268,-3486.14425,0.0002688,7]
[329690894,1718581862292,-151.0,0.0002688,7]
[329690895,1718581862311,-453.558259,0.0002688,7]
[329690896,1718581862329,-150.0,0.00026889,2]
[329690897,1718581862354,-150.0,0.00026892,2]
[329690898,1718581862371,-2183.2334803,0.00026897,20]
[329690899,1718581862388,-150.0,0.000269,5]
[329690900,1718581862404,-150.0,0.000269,5]
[329690901,1718581862420,-150.0,0.00026911,2]
[329690902,1718581862443,-150.0,0.00026918,2]
[329690903,1718581862461,-150.0,0.00026924,2]
[329690904,1718581862481,-150.0,0.00026925,2]
[329690905,1718581862504,-150.0,0.00026973,2]
[329690906,1718581862521,-150.0,0.0002698,2]
[329690907,1718581862539,-150.0,0.00026982,2]
[329690908,1718581862559,-150.0,0.00026986,2]
[329690909,1718581862574,-150.0,0.00026988,2]
[329690910,1718581862593,-150.0,0.00026999,10]
[329690911,1718581862612,-97398.88121301,0.00026999,2]
[329690912,1718581862633,-253.910259,0.00026999,7]
[329690913,1718581862653,-151.0,0.00026999,7]
[329690914,1718581862673,-176.979318,0.00026999,7]
[329690915,1718581862697,-151.0,0.00026999,7]
[329690916,1718581862712,-428.047649,0.00026999,7]
[329690917,1718581862737,-428.047649,0.00026999,7]
[329690918,1718581862770,-151.0,0.00026999,7]
[329690919,1718581862804,-151.0,0.00026999,7]
[329690920,1718581862837,-151.0,0.00026999,7]
[329690921,1718581862869,-151.0,0.00026999,7]
[329690922,1718581862901,-151.0,0.00026999,7]
[329690923,1718581862931,-151.0,0.00026999,7]
[329690924,1718581862962,-151.0,0.00026999,7]
[329690925,1718581862992,-151.0,0.00026999,7]
[329690926,1718581863008,-151.0,0.00026999,7]
[329690927,1718581863026,-151.0,0.00026999,7]
[329690928,1718581863052,-187.507954,0.00026999,7]
[329690929,1718581863105,-187.507954,0.00026999,7]
[329690930,1718581863136,-151.0,0.00026999,7]
[329690931,1718581863173,-151.0,0.00026999,7]
[329690932,1718581863235,-160.717722,0.00026999,7]
[329690933,1718581863265,-160.717722,0.00026999,7]
[329690934,1718581863303,-151.0,0.00026999,7]
[329690935,1718581863345,-387.697063,0.00026999,7]
[329690936,1718581863405,-387.697063,0.00026999,7]
[329690937,1718581863475,-151.0,0.00026999,7]
[329690938,1718581863502,-155.417556,0.00026999,7]
[329690939,1718581863525,-155.417556,0.00026999,7]
[329690940,1718581863546,-170.640598,0.00026999,7]
[329690941,1718581863576,-170.640598,0.00026999,7]
[329690942,1718581863629,-151.0,0.00026999,7]
[329690943,1718581863660,-151.0,0.00026999,7]
[329690944,1718581863688,-396.994115,0.00026999,7]
[329690945,1718581863741,-396.994115,0.00026999,7]
[329690946,1718581863783,-151.0,0.00026999,7]
[329690947,1718581863802,-151.0,0.00026999,7]
[329690948,1718581863870,-151.0,0.00026999,7]
[329690949,1718581863921,-166.170055,0.00026999,7]
[329690950,1718581863977,-151.0,0.00026999,7]
[329690951,1718581863993,-549.676913,0.00026999,7]
[329690952,1718581864029,-549.676913,0.00026999,7]
[329690953,1718581864061,-151.0,0.00026999,7]
[329690954,1718581864085,-151.0,0.00026999,7]
[329690955,1718581864143,-151.0,0.00026999,7]
[329690956,1718581864187,-159.90982101,0.00026999,2]
[329690957,1718581864218,-3486.14425,0.00026999,7]
[329690958,1718581864233,-270.861383,0.00026999,7]
[329690959,1718581864249,-11064.50024771,0.00027,2]
[329690960,1718581864275,-256757.6399502,0.00027,2]
[329690961,1718581864286,-20050.0,0.00027,2]
[329690962,1718581864306,-155.0,0.00027,4]
[329690963,1718581864528,-1205.49676765,0.00027,2]
[329690964,1718581864551,-1400.0,0.00027,2]
[329690965,1718581864564,-17812.44666351,0.00027,2]
[329690966,1718581864578,-151.0,0.00027,7]
[329690967,1718581864612,-151.0,0.00027,7]
[329690968,1718581864635,-428.047649,0.00027,7]
[329690969,1718581864648,-428.047649,0.00027,7]
[329690970,1718581864687,-151.0,0.00027,7]
[329690971,1718581864732,-151.0,0.00027,7]
[329690972,1718581864745,-151.0,0.00027,7]
[329690973,1718581864770,-151.0,0.00027,7]
[329690974,1718581864785,-151.0,0.00027,7]
[329690975,1718581864820,-151.0,0.00027,7]
[329690976,1718581864860,-151.0,0.00027,7]
[329690977,1718581864891,-151.0,0.00027,7]
[329690978,1718581864917,-163.387328,0.00027,7]
[329690979,1718581864929,-2000.0,0.00027,2]
[329690980,1718581864957,-2000.0,0.00027,2]
[329690981,1718581865005,-187.507954,0.00027,7]
[329690982,1718581865064,-187.507954,0.00027,7]
[329690983,1718581865079,-249.59585,0.00027,7]
[329690984,1718581865113,-151.0,0.00027,7]
[329690985,1718581865124,-1012.7293,0.00027,2]
[329690986,1718581865137,-160.717722,0.00027,7]
[329690987,1718581865147,-160.717722,0.00027,7]
[329690988,1718581865159,-151.0,0.00027,7]
[329690989,1718581865170,-200.0,0.00027,2]
[329690990,1718581865188,-387.697063,0.00027,7]
[329690991,1718581865204,-387.697063,0.00027,7]
[329690992,1718581865216,-151.0,0.00027,7]
[329690993,1718581865228,-155.417556,0.00027,7]
[329690994,1718581865240,-155.417556,0.00027,7]
[329690995,1718581865253,-170.640598,0.00027,7]
[329690996,1718581865277,-475.855,0.00027,2]
[329690997,1718581865288,-170.640598,0.00027,7]
[329690998,1718581865306,-151.0,0.00027,7]
[329690999,1718581865318,-151.0,0.00027,7]
[329691000,1718581865329,-396.994115,0.00027,7]
[329691001,1718581865351,-396.994115,0.00027,7]
[329691002,1718581865368,-192.335554,0.00027,7]
[329691003,1718581865380,-151.0,0.00027,7]
[329691004,1718581865418,-151.0,0.00027,7]
[329691005,1718581865449,-151.0,0.00027,7]
[329691006,1718581865480,-565.3482,0.00027,2]
[329691007,1718581865493,-549.676913,0.00027,7]
[329691008,1718581865546,-2004.6,0.00027,2]
[329691009,1718581865557,-549.676913,0.00027,7]
[329691010,1718581865583,-151.0,0.00027,7]
[329691011,1718581865624,-151.0,0.00027,7]
[329691012,1718581865638,-311.56,0.00027,2]
[329691013,1718581865650,-151.0,0.00027,7]
[329691014,1718581865674,-170.0,0.00027,2]
[329691015,1718581865687,-3486.14425,0.00027,7]
[329691016,1718581865700,-2000.0,0.0002701,2]
[329691017,1718581865715,-3429.241296,0.0002701,2]
[329691018,1718581865752,-2000.0,0.0002702,2]
[329691019,1718581865763,-2000.0,0.0002703,2]
[329691020,1718581865789,-2519.155011,0.0002704,2]
[329691021,1718581865814,-235.02970172,0.00027121,2]
[329691022,1718581865831,-2500.0,0.00027121,20]
[329691023,1718581865876,-151.108655,0.00027123,2]
[329691024,1718581865891,-3460.16,0.00027123,2]
[329691025,1718581865911,-778.17029976,0.00027197,2]
[329691026,1718581865934,-600.0,0.00027215,6]
[329691027,1718581865972,-151.0,0.00027264,5]
[329691028,1718581865991,-28776.53596437,0.00027297,7]
[329691029,1718581866006,-182.6081173,0.00027297,2]
[329691030,1718581866024,-1099.04752428,0.00027297,2]
[329691031,1718581866040,-2797.98553647,0.00027297,2]
[329691032,1718581866084,-9199.46959945,0.00027297,2]
[329691033,1718581866120,-1190.7738265,0.00027297,2]
[329691034,1718581866131,-1364.00611956,0.000273,2]
[329691035,1718581866142,-1583.7793191,0.000273,10]
[329691036,1718581866154,-399.0,0.00027367,15]
[329691037,1718581866171,-1194.0,0.00027367,15]
[329691038,1718581866183,-1055.63079661,0.0002737,2]
[329691039,1718581866202,-572.80690907,0.0002737,2]
[329691040,1718581866216,-399.0,0.00027377,15]
[329691041,1718581866236,-1194.0,0.00027377,15]
[329691042,1718581866253,-399.0,0.00027377,15]
[329691043,1718581866264,-1194.0,0.00027377,15]
[329691044,1718581866281,-399.0,0.00027387,15]
[329691045,1718581866293,-1194.0,0.00027387,15]
[329691046,1718581866307,-399.0,0.00027387,15]
[329691047,1718581866320,-1194.0,0.00027387,15]
[329691048,1718581866341,-22063.4,0.0002739,3]
[329691049,1718581866355,-150.0,0.00027394,10]
[329691050,1718581866382,-150.0,0.00027394,10]
[329691051,1718581866398,-150.0,0.00027394,10]
[329691052,1718581866412,-150.0,0.00027394,10]
[329691053,1718581866425,-150.0,0.00027394,10]
[329691054,1718581866442,-150.0,0.00027394,10]
[329691055,1718581866454,-150.0,0.00027394,10]
[329691056,1718581866482,-150.0,0.00027394,10]
[329691057,1718581866495,-150.0,0.00027394,10]
[329691058,1718581866508,-150.0,0.00027394,10]
[329691059,1718581866524,-150.0,0.00027394,10]
[329691060,1718581866546,-150.0,0.00027394,10]
[329691061,1718581866585,-193.565245,0.00027394,7]
[329691062,1718581866609,-187.507954,0.00027394,7]
[329691063,1718581866638,-187.507954,0.00027394,7]
[329691064,1718581866661,-151.0,0.00027394,7]
[329691065,1718581866681,-160.717722,0.00027394,7]
[329691066,1718581866708,-160.717722,0.00027394,7]
[329691067,1718581866721,-155.29562,0.00027394,7]
[329691068,1718581866735,-387.697063,0.00027394,7]
[329691069,1718581866753,-387.697063,0.00027394,7]
[329691070,1718581866776,-155.417556,0.00027394,7]
[329691071,1718581866789,-151.0,0.00027394,7]
[329691072,1718581866825,-155.417556,0.00027394,7]
[329691073,1718581866844,-170.640598,0.00027394,7]
[329691074,1718581866871,-170.640598,0.00027394,7]
[329691075,1718581866882,-151.0,0.00027394,7]
[329691076,1718581866901,-151.0,0.00027394,7]
[329691077,1718581866932,-396.994115,0.00027394,7]
[329691078,1718581866943,-396.994115,0.00027394,7]
[329691079,1718581866959,-151.0,0.00027394,7]
[329691080,1718581866981,-228.650016,0.00027394,7]
[329691081,1718581867013,-151.0,0.00027394,7]
[329691082,1718581867041,-549.676913,0.00027394,7]
[329691083,1718581867090,-549.676913,0.00027394,7]
[329691084,1718581867106,-151.0,0.00027394,7]
[329691085,1718581867145,-151.0,0.00027394,7]
[329691086,1718581867177,-151.0,0.00027394,7]
[329691087,1718581867188,-3486.14425,0.00027394,7]
[329691088,1718581867221,-257888.14337151,0.00027394,2]
[329691089,1718581867256,-288.53461302,0.00027395,2]
[329691090,1718581867269,-535.38927151,0.00027395,2]
[329691091,1718581867292,-5467.83828743,0.00027395,2]
[329691092,1718581867312,-204.47804926,0.00027395,2]
[329691093,1718581867325,-235.77130805,0.00027395,2]
[329691094,1718581867357,-207.27168747,0.00027395,2]
[329691095,1718581867372,-289.01819934,0.00027395,2]
[329691096,1718581867383,-2332.63409154,0.00027395,2]
[329691097,1718581867396,-1390.44375036,0.00027395,2]
[329691098,1718581867425,-215.11616121,0.00027395,2]
[329691099,1718581867437,-1283.21645696,0.00027395,3]
[329691100,1718581867454,-998.48103012,0.00027395,2]
[329691101,1718581867466,-797.10235942,0.00027395,2]
[329691102,1718581867480,-705.89490576,0.00027395,2]
[329691103,1718581867510,-1863.69274956,0.00027395,2]
[329691104,1718581867522,-365.0278931,0.00027395,2]
[329691105,1718581867553,-155.0,0.00027395,2]
[329691106,1718581867568,-792.99144726,0.00027395,2]
[329691107,1718581867580,-155.16730935,0.00027395,2]
[329691108,1718581867593,-155.0,0.00027395,2]
[329691109,1718581867615,-157.58092106,0.00027395,2]
[329691110,1718581867643,-286.53333514,0.00027395,2]
[329691111,1718581867662,-155.0,0.00027395,2]
[329691112,1718581867674,-3035.70593048,0.00027395,2]
[329691113,1718581867685,-405.0498929,0.00027395,2]
[329691114,1718581867696,-543.288119,0.00027395,2]
[329691115,1718581867712,-155.0,0.00027395,2]
[329691116,1718581867728,-267.22434264,0.00027395,2]
[329691117,1718581867742,-155.0,0.00027395,2]
[329691118,1718581867754,-210.8296946,0.00027395,2]
[329691119,1718581867767,-168.39433927,0.00027395,2]
[329691120,1718581867779,-200.65022644,0.00027395,2]
[329691121,1718581867790,-884.73581718,0.00027395,2]
[329691122,1718581867817,-155.0,0.00027395,2]
[329691123,1718581867844,-2825.45188421,0.00027395,2]
[329691124,1718581867859,-155.0,0.00027395,2]
[329691125,1718581867877,-450.0,0.00027395,2]
[329691126,1718581867888,-551.8087061,0.00027395,2]
[329691127,1718581867905,-538.33838683,0.00027395,2]
[329691128,1718581867929,-267.24664886,0.00027395,2]
[329691129,1718581867942,-248.92686412,0.00027395,2]
[329691130,1718581867953,-506.09880179,0.00027395,2]
[329691131,1718581867973,-1281.54087007,0.00027395,2]
[329691132,1718581867987,-176.19130326,0.00027395,2]
[329691133,1718581867998,-5000.0,0.00027395,7]
[329691134,1718581868011,-298.55876344,0.00027395,2]
[329691135,1718581868026,-445.91499139,0.00027395,2]
[329691136,1718581868044,-7186.03926733,0.00027395,2]
[329691137,1718581868085,-929.98587127,0.00027395,2]
[329691138,1718581868098,-413734.91575481,0.00027395,2]
[329691139,1718581868122,-338.82841871,0.00027395,2]
[329691140,1718581868140,-497.71766581,0.00027395,10]
[329691141,1718581868177,-151.0,0.00027395,7]
[329691142,1718581868199,-269.326162,0.00027395,7]
[329691143,1718581868213,-428.047649,0.00027395,7]
[329691144,1718581868225,-428.047649,0.00027395,7]
[329691145,1718581868236,-151.0,0.00027395,7]
[329691146,1718581868251,-151.0,0.00027395,7]
[329691147,1718581868266,-151.0,0.00027395,7]
[329691148,1718581868281,-151.0,0.00027395,7]
[329691149,1718581868293,-151.0,0.00027395,7]
[329691150,1718581868311,-151.0,0.00027395,7]
[329691151,1718581868326,-151.0,0.00027395,7]
[329691152,1718581868352,-187.507954,0.00027395,7]
[329691153,1718581868400,-187.507954,0.00027395,7]
[329691154,1718581868430,-151.0,0.00027395,7]
[329691155,1718581868442,-160.717722,0.00027395,7]
[329691156,1718581868455,-160.717722,0.00027395,7]
[329691157,1718581868469,-387.697063,0.00027395,7]
[329691158,1718581868499,-387.697063,0.00027395,7]
[329691159,1718581868532,-155.417556,0.00027395,7]
[329691160,1718581868558,-151.0,0.00027395,7]
[329691161,1718581868568,-155.417556,0.00027395,7]
[329691162,1718581868580,-170.640598,0.00027395,7]
[329691163,1718581868595,-170.640598,0.00027395,7]
[329691164,1718581868611,-151.0,0.00027395,7]
[329691165,1718581868624,-151.0,0.00027395,7]
[329691166,1718581868635,-396.994115,0.00027395,7]
[329691167,1718581868657,-396.994115,0.00027395,7]
[329691168,1718581868670,-169.335267,0.00027395,7]
[329691169,1718581868697,-151.0,0.00027395,7]
[329691170,1718581868717,-549.676913,0.00027395,7]
[329691171,1718581868739,-549.676913,0.00027395,7]
[329691172,1718581868772,-151.0,0.00027395,7]
[329691173,1718581868793,-250.149048,0.00027395,7]
[329691174,1718581868807,-153.013944,0.00027395,7]
[329691175,1718581868818,-3486.14425,0.00027395,7]
[329691176,1718581868849,-487.41540634,0.00027396,2]
[329691177,1718581868878,-176.31364723,0.00027396,2]
[329691178,1718581868935,-150.0,0.00027396,10]
[329691179,1718581868954,-150.0,0.00027396,10]
[329691180,1718581868966,-150.0,0.00027396,10]
[329691181,1718581868978,-150.0,0.00027396,10]
[329691182,1718581869004,-150.0,0.00027396,10]
[329691183,1718581869031,-150.0,0.00027396,10]
[329691184,1718581869085,-150.0,0.00027396,10]
[329691185,1718581869196,-150.0,0.00027396,10]
[329691186,1718581869210,-150.0,0.00027396,10]
[329691187,1718581869236,-150.0,0.00027396,10]
[329691188,1718581869249,-150.0,0.00027396,10]
[329691189,1718581869262,-150.0,0.00027396,10]
[329691190,1718581869277,-150.0,0.00027396,10]
[329691191,1718581869288,-150.0,0.00027396,10]
[329691192,1718581869305,-150.0,0.00027396,10]
[329691193,1718581869317,-150.0,0.00027396,10]
[329691194,1718581869329,-150.0,0.00027396,10]
[329691195,1718581869358,-267.06365256,0.00027396,10]
[329691196,1718581869370,-1922.14368407,0.00027397,5]
[329691197,1718581869388,-393.69836376,0.00027397,2]
[329691198,1718581869402,-236.21901825,0.00027397,2]
[329691199,1718581869418,-157.4793455,0.00027397,2]
[329691200,1718581869443,-289.96936823,0.00027397,30]
[329691201,1718581869460,-392.25177867,0.00027397,2]
[329691202,1718581869485,-392.25177867,0.00027397,2]
[329691203,1718581869513,-15884.92685657,0.00027397,2]
[329691204,1718581869526,-15884.92685657,0.00027397,2]
[329691205,1718581869540,-15884.92685657,0.00027397,2]
[329691206,1718581869556,-15884.92685657,0.00027397,2]
[329691207,1718581869569,-188.79642671,0.00027397,2]
[329691208,1718581869597,-404.32021366,0.00027397,2]
[329691209,1718581869608,-500.0,0.00027397,8]
[329691210,1718581869633,-500.0,0.00027397,8]
[329691211,1718581869644,-455.08034491,0.00027397,8]
[329691212,1718581869657,-527.53802085,0.00027397,8]
[329691213,1718581869681,-501.82262606,0.00027397,8]
[329691214,1718581869693,-500.0,0.00027397,8]
[329691215,1718581869705,-528.16170761,0.00027397,8]
[329691216,1718581869850,-501.56180903,0.00027397,8]
[329691217,1718581869904,-502.23776079,0.00027397,8]
[329691218,1718581869928,-500.0,0.00027397,8]
[329691219,1718581869974,-269.74687653,0.00027397,8]
[329691220,1718581869992,-500.0,0.00027397,8]
[329691221,1718581870022,-500.0,0.00027397,8]
[329691222,1718581870033,-229.56506275,0.00027397,8]
[329691223,1718581870072,-500.0,0.00027397,8]
[329691224,1718581870088,-507.77226478,0.00027397,8]
[329691225,1718581870106,-500.0,0.00027397,8]
[329691226,1718581870120,-500.0,0.00027397,8]
[329691227,1718581870146,-628.13300071,0.00027397,8]
[329691228,1718581870160,-639.51700981,0.00027397,8]
[329691229,1718581870173,-500.0,0.00027397,8]
[329691230,1718581870195,-355.9213811,0.00027397,8]
[329691231,1718581870214,-500.0,0.00027397,8]
[329691232,1718581870252,-500.0,0.00027397,8]
[329691233,1718581870266,-500.0,0.00027397,8]
[329691234,1718581870291,-512.28497337,0.00027397,8]
[329691235,1718581870361,-500.0,0.00027397,8]
[329691236,1718581870381,-500.0,0.00027397,8]
[329691237,1718581870395,-428.17289696,0.00027397,8]
[329691238,1718581870441,-532.05845602,0.00027397,2]
[329691239,1718581870453,-519.27366424,0.00027397,8]
[329691240,1718581870465,-500.0,0.00027397,8]
[329691241,1718581870477,-505.49441802,0.00027397,8]
[329691242,1718581870489,-500.0,0.00027397,8]
[329691243,1718581870517,-500.0,0.00027397,8]
[329691244,1718581870528,-500.0,0.00027397,8]
[329691245,1718581870551,-500.0,0.00027397,8]
[329691246,1718581870581,-273.21112601,0.00027397,8]
[329691247,1718581870639,-500.0,0.00027397,8]
[329691248,1718581870657,-500.28623124,0.00027397,8]
[329691249,1718581870689,-500.0,0.00027397,8]
[329691250,1718581870732,-500.0,0.00027397,8]
[329691251,1718581870758,-500.0,0.00027397,2]
[329691252,1718581870777,-500.0,0.00027397,2]
[329691253,1718581870796,-500.0,0.00027397,2]
[329691254,1718581870808,-500.0,0.00027397,2]
[329691255,1718581870826,-500.0,0.00027397,2]
[329691256,1718581870859,-500.0,0.00027397,2]
[329691257,1718581870871,-500.0,0.00027397,2]
[329691258,1718581870882,-500.0,0.00027397,2]
[329691259,1718581870895,-500.0,0.00027397,2]
[329691260,1718581870913,-500.0,0.00027397,2]
[329691261,1718581870926,-500.0,0.00027397,2]
[329691262,1718581870953,-200.64642704,0.00027397,2]
[329691263,1718581870969,-500.0,0.00027397,2]
[329691264,1718581871000,-500.0,0.00027397,8]
[329691265,1718581871021,-500.0,0.00027397,8]
[329691266,1718581871044,-500.0,0.00027397,8]
[329691267,1718581871078,-500.0,0.00027397,8]
[329691268,1718581871090,-500.0,0.00027397,8]
[329691269,1718581871124,-500.0,0.00027397,8]
[329691270,1718581871136,-500.0,0.00027397,8]
[329691271,1718581871149,-264.06247077,0.00027397,8]
[329691272,1718581871172,-500.0,0.00027397,2]
[329691273,1718581871192,-176.96342002,0.00027397,2]
[329691274,1718581871204,-500.0,0.00027397,2]
[329691275,1718581871229,-500.0,0.00027397,8]
[329691276,1718581871263,-500.0,0.00027397,8]
[329691277,1718581871286,-500.0,0.00027397,8]
[329691278,1718581871298,-500.0,0.00027397,8]
[329691279,1718581871328,-500.0,0.00027397,8]
[329691280,1718581871350,-500.0,0.00027397,8]
[329691281,1718581871416,-500.0,0.00027397,8]
[329691282,1718581871442,-500.0,0.00027397,8]
[329691283,1718581871462,-500.0,0.00027397,8]
[329691284,1718581871476,-591.93534024,0.00027397,8]
[329691285,1718581871491,-500.0,0.00027397,2]
[329691286,1718581871508,-500.0,0.00027397,2]
[329691287,1718581871526,-500.0,0.00027397,2]
[329691288,1718581871551,-500.0,0.00027397,2]
[329691289,1718581871565,-500.0,0.00027397,2]
[329691290,1718581871577,-500.0,0.00027397,2]
[329691291,1718581871594,-500.0,0.00027397,2]
[329691292,1718581871609,-336.8851422,0.00027397,2]
[329691293,1718581871619,-500.0,0.00027397,2]
[329691294,1718581871630,-500.0,0.00027397,2]
[329691295,1718581871640,-500.0,0.00027397,2]
[329691296,1718581871651,-500.0,0.00027397,2]
[329691297,1718581871662,-282.20796115,0.00027397,8]
[329691298,1718581871673,-500.0,0.00027397,8]
[329691299,1718581871701,-500.0,0.00027397,8]
[329691300,1718581871718,-500.0,0.00027397,8]
[329691301,1718581871737,-500.0,0.00027397,8]
[329691302,1718581871765,-500.0,0.00027397,8]
[329691303,1718581871795,-500.0,0.00027397,8]
[329691304,1718581871824,-500.0,0.00027397,8]
[329691305,1718581871838,-500.0,0.00027397,8]
[329691306,1718581871854,-500.0,0.00027397,8]
[329691307,1718581871867,-500.0,0.00027397,8]
[329691308,1718581871877,-500.0,0.00027397,8]
[329691309,1718581871888,-500.0,0.00027397,8]
[329691310,1718581871899,-500.0,0.00027397,8]
[329691311,1718581871913,-500.0,0.00027397,8]
[329691312,1718581871926,-500.0,0.00027397,8]
[329691313,1718581871939,-500.0,0.00027397,8]
[329691314,1718581871954,-277.80641841,0.00027397,8]
[329691315,1718581871965,-500.0,0.00027397,8]
[329691316,1718581871976,-615.60347177,0.00027397,8]
[329691317,1718581871986,-500.0,0.00027397,8]
[329691318,1718581872018,-500.0,0.00027397,8]
[329691319,1718581872046,-500.0,0.00027397,8]
[329691320,1718581872060,-500.0,0.00027397,8]